{"text_format":"1","workbook":"xlsx","n_sheets":2,"sheets":["hiddenSheet","Åpenhetsloven"],"not_rendered":{"charts":0,"images":1,"macros":0,"external_links":0,"defined_names":14,"comments":0,"pivot_tables":0},"unopened":[],"bounds":{"document_bytes":16777216,"sheet_cells":100000,"rows_first":2000,"rows_last":500,"rows_between":2000,"halvings":0,"cell_chars":16384,"cell_head_chars":4096},"cells_cut":0,"cells_raw":0,"read":"whole","date_system":"1900"}

{"sheet":"hiddenSheet","index":0,"n_rows":14,"n_cols":1,"rows_kept":14,"cut":false,"hidden":true,"merged":[]}
[-11]
["lagre"]
["nei"]
["UB"]
["DOK"]
[2.2000000000000002]
["EK_Avdeling¤2#4¤2# ¤3#EK_Avsnitt¤2#4¤2# ¤3#EK_Bedriftsnavn¤2#1¤2#Sykehuset i Vestfold HF¤3#EK_GjelderFra¤2#0¤2#26.05.2023¤3#EK_KlGjelderFra¤2#0¤2#¤3#EK_Opprettet¤2#0¤2#01.03.2023¤3#EK_Utgitt¤2#0¤2#09.03.2023¤3#EK_IBrukDato¤2#0¤2#26.05.2023¤3#EK_DokumentID¤2#0¤2#D28133¤3#EK_DokTittel¤2#0¤2#Menneskerettigheter og arbeidsforhold - risikovurdering¤3#EK_DokType¤2#0¤2#¤3#EK_DocLvlShort¤2#0¤2# ¤3#EK_DocLevel¤2#0¤2# ¤3#EK_EksRef¤2#2¤2# 0\t¤3#EK_Erstatter¤2#0¤2#2.01¤3#EK_ErstatterD¤2#0¤2#22.05.2023¤3#EK_Signatur¤2#0¤2#Virksomhetsstyring - Ruth Anne Rojahn¤3#EK_Verifisert¤2#0¤2# ¤3#EK_Hørt¤2#0¤2# ¤3#EK_AuditReview¤2#2¤2# ¤3#EK_AuditApprove¤2#2¤2# ¤3#EK_Gradering¤2#0¤2#Åpen¤3#EK_Gradnr¤2#4¤2#0¤3#EK_Kapittel¤2#4¤2# ¤3#EK_Referanse¤2#2¤2# 0\t¤3#EK_RefNr¤2#0¤2#1.4.13.3¤3#EK_Revisjon¤2#0¤2#2.02¤3#EK_Ansvarlig¤2#0¤2#Helle Akselsen¤3#EK_SkrevetAv¤2#0¤2#Rådgiver HMS Helle Akselsen¤3#EK_Godkjenn2¤2#0¤2# ¤3#EK_UText2¤2#0¤2# ¤3#EK_UText3¤2#0¤2# ¤3#EK_UText4¤2#0¤2# ¤3#EK_Status¤2#0¤2#I bruk¤3#EK_Stikkord¤2#0¤2#¤3#EK_SuperStikkord¤2#0¤2#¤3#EK_Rapport¤2#3¤2#¤3#EK_EKPrintMerke¤2#0¤2#Utskrift er kun gyldig på utskriftsdato¤3#EK_Watermark¤2#0¤2#¤3#EK_Utgave¤2#0¤2#2.02¤3#EK_Merknad¤2#7¤2#Nytt dokument¤3#EK_VerLogg¤2#2¤2#Ver. 2.02 - 26.05.2023|Nytt dokument¤1#Ver. 2.01 - 23.05.2023|.¤1#Ver. 2.00 - 22.05.2023|reviderer¤1#Ver. 1.02 - 19.05.2023|Ny excelversjon¤1#Ver. 1.01 - 10.03.2023|endret navn fra aktsomhetsvurdering til risikovurdering¤1#Ver. 1.00 - 09.03.2023|¤3#EK_RF1¤2#4¤2# ¤3#EK_RF2¤2#4¤2# ¤3#EK_RF3¤2#4¤2# ¤3#EK_RF4¤2#4¤2# ¤3#EK_RF5¤2#4¤2# ¤3#EK_RF6¤2#4¤2# ¤3#EK_RF7¤2#4¤2# ¤3#EK_RF8¤2#4¤2# ¤3#EK_RF9¤2#4¤2# ¤3#EK_Mappe1¤2#4¤2# ¤3#EK_Mappe2¤2#4¤2# ¤3#EK_Mappe3¤2#4¤2# ¤3#EK_Mappe4¤2#4¤2# ¤3#EK_Mappe5¤2#4¤2# ¤3#EK_Mappe6¤2#4¤2# ¤3#EK_Mappe7¤2#4¤2# ¤3#EK_Mappe8¤2#4¤2# ¤3#EK_Mappe9¤2#4¤2# ¤3#EK_DL¤2#0¤2#3¤3#EK_GjelderTil¤2#0¤2#26.05.2025¤3#EK_Vedlegg¤2#2¤2# 0\t¤3#EK_AvdelingOver¤2#4¤2# ¤3#EK_HRefNr¤2#0¤2# ¤3#EK_HbNavn¤2#0¤2# ¤3#EK_DokRefnr¤2#4¤2#00010413¤3#EK_Dokendrdato¤2#4¤2#24.05.2023 12:34:40¤3#EK_HbType¤2#4¤2# ¤3#EK_Offisiell¤2#4¤2# ¤3#EK_VedleggRef¤2#4¤2#1.4.13.3¤3#EK_Strukt00¤2#5¤2#¤5#1¤5#Overordnet nivå - Nivå 1¤5#0¤5#0¤4#.¤5#4¤5#Helse- miljø og sikkerhetsarbeid¤5#1¤5#0¤4#.¤5#13¤5#Menneskerettigheter og arbeidsforhold¤5#0¤5#0¤4#\\¤3#EK_Strukt01¤2#5¤2#¤5#¤5#Hele SiV¤5#0¤5#0¤4#\\¤3#EK_Strukt04¤2#5¤2#¤3#EK_Pub¤2#6¤2#;2;¤3#EKR_DokType¤2#0¤2# ¤3#EKR_Doktittel¤2#0¤2# ¤3#EKR_DokumentID¤2#0¤2# ¤3#EKR_RefNr¤2#0¤2# ¤3#EKR_Gradering¤2#0¤2# ¤3#EKR_Signatur¤2#0¤2# ¤3#EKR_Verifisert¤2#0¤2# ¤3#EKR_Hørt¤2#0¤2# ¤3#EKR_AuditReview¤2#2¤2# ¤3#EKR_AuditApprove¤2#2¤2# ¤3#EKR_AuditFinal¤2#2¤2# ¤3#EKR_Dokeier¤2#0¤2# ¤3#EKR_Status¤2#0¤2# ¤3#EKR_Opprettet¤2#0¤2# ¤3#EKR_Endret¤2#0¤2# ¤3#EKR_Ibruk¤2#0¤2# ¤3#EKR_Rapport¤2#3¤2# ¤3#EKR_Utgitt¤2#0¤2# ¤3#EKR_SkrevetAv¤2#0¤2# ¤3#EKR_UText1¤2#0¤2# ¤3#EKR_UText2¤2#0¤2# ¤3#EKR_UText3¤2#0¤2# ¤3#EKR_UText4¤2#0¤2# ¤3#EKR_DokRefnr¤2#4¤2# ¤3#EKR_Gradnr¤2#4¤2# ¤3#EKR_Strukt00¤2#5¤2#¤5#1¤5#Overordnet nivå - Nivå 1¤5#0¤5#0¤4#.¤5#4¤5#Helse- miljø og sikkerhetsarbeid¤5#1¤5#0¤4#.¤5#13¤5#Menneskerettigheter og arbeidsforhold¤5#0¤5#0¤4#\\¤3#"]
["___"]
["___"]
["___"]
[0]
["___"]
["___"]
["___"]

{"sheet":"Åpenhetsloven","index":1,"n_rows":55,"n_cols":12,"rows_kept":55,"cut":false,"hidden":false,"merged":[[7,3,7,8],[0,0,3,3],[5,0,5,3],[0,7,3,9],[4,0,4,1],[4,2,4,3],[4,7,4,8],[5,7,5,8]]}
[null,null,null,null,null,null,null,"                                                Ytre Miljø - Identifikasjon av miljøaspekter 2018"]
[]
[]
[]
["Avdeling:",null,"Hovedområde: Hele Sykehuset i Vestfold",null,null,null,null,"HMS-sjef, Kirsti W. Ingebretsen og HMS-rådgiver, Helle Akselsen",null,"Versjon:"]
["Dokumentidentifikasjon:",null,null,null,null,null,null,"Godkjenner:",null,"Dato: "]
["A","B","C","E",null,null,null,null,null,"J"]
[null,null,null,"Gjennomført: 16.5.2023\nOppdatert:"]
[" ","Risikofaktor/aktivitet","Styring","Ansvarlig","Omfang","Kontekst//informasjon om aktiviteten","Prosedyrer/ Instrukser/kontroll med aktiviteten","Sannsynlighet"," Konsekvens","Risiko","Kommentar/ oppfølging","Mulige tiltak"]
["Nr.","Identifisere aktiviteter foretaket gjennomfører ved kjøp av varer og tjenester sett opp mot risikofaktoren tap av grunnleggende menneskerettigheter og anstendige arbeidsforhold lokalt og globalt \n\n\n\n\n\n\n\n\n\n\n\n\n\n\nTap av grunnleggende menneskerettigheter og anstendige arbeidsforhold ved:","D=Direkte styring: det som kontrolleres selv\n\nI=Indirekte styring: alle tilfeller som kan påvirkes gjennom kontraktsforhold eller gjennom innflytelse","Beskriv hvem som er ansvarlig for anskaffelsene, for eksempel: sykehusinnkjøp, innkjøp lokalt, MTA, sykehuspartner osv.","Beskriv omfanget av aktiviteten for eksempel størrelse på anskaffelser, opprinnelsesland for produktkategorien osv.","Beskriv omfanget av aktiviteten for eksempel størrelse på anskaffelser, opprinnelsesland for produktkategorien osv.","Henvisning til prosedyrer/systemer/avtaler eller lignende","Hvor ofte forekommer aktiviteten, produktet eller tjenesten\n\nSvært sannsynlig = 5 (90-100%)\nMeget sannsynlig = 4 (60-90%)\nSannsynlig = 3 (30-60%)\nMindre sannsynlig = 2 (10-30%)\nlite sannsynlig = 1 (0-10%)","Hvor stor konsekvens har aktivitetens påvirkning på grunnleggende menneskerettigheter og anstendige arbeidsforhold\n\nKatastrofalt = 5 (tap av liv)\nSvært alvorlig = 4 (betydelig fysisk/psykisk personskade, fare for tap av liv)\nAlvorlig = 3 (alvorlig fysisk/psykisk skade)\nMindre alvorlig = 2 (mindre alvorlig fysisk/psykisk skade)\nUbetydelig = 1 (ubetydelig fysisk/psykisk skade)","S*K=R\n\nHøy risiko (rød):15-25 = tiltak \nGul: 4-12 =vurdere tiltak\nGrønn:1-3 = ingen tiltak\n\n",null,"Mulige løsninger/arbeid mtp å redusere risikoen og mulige tiltak"]
[1,"Anskaffelser som gjennomføres av Sykehusinnkjøp på vegne av helseforetaket","I","Sykehusinnkjøp","Ca 70% av kjøpene vi gjør gjennom innkjøpssystemet er kjøp på avtale fra sykehusinnkjøp","Sykehusinnkjøp HF er helseforetakene og de regionale helseforetakenes innkjøpssentral i henhold til regelverket for offentlige anskaffelser. Sykehusinnkjøp HF utfører aktsomhetsvurderinger på anskaffelser for å forebygge risiko for brudd og håndtere faktiske brudd på menneskerettigheter i leveransekjeden i samsvar med OECDs retningslinjer og i tråd med åpenhetsloven. Det er etablert kommunikasjonslinjer mellom Sykehusinnkjøp HF og SiV HF i henhold til inngått samarbeidsavtale, Tjenester 1.7.1 Samfunnsansvar. SiV HFs ansvar er å følge opp i samsvar med inngått samarbeidsavtale.  ","Sykehusinnkjop sin nettside for samfunnsansvar",4,3,{"$f":"IF(OR(H11=0,I11=0),\"\",H11*I11)","v":12},"Det er utarbeidet en samarbeidsavtale mellom sykehusinnkjøp og foretakene. \nSykehusinnkjøp har utarbeidet en handlingsplan hvor de har 14 prioriterte områder, og 7 som er prioritert å jobbe med for 2023-2024","Påse at jevnlige møter med Sykehusinnkjøp om åpenhetsloven i FIL og samfunnsansvar\n\nPåse at arbeid med aktsomhetsvurdering  er nevnt i konkurransegrunnlaget\n\nLegge inn info om åpenhetsloven i mandatet for produktrådet"]
[2,"Innkjøp og avtaler som gjennomføres av Sykehuspartner på vegne av helseforetaket","I","Sykehuspartner","SiV har kjøpt for ca 286 mill fra sykehuspartner i 2022","Sykehuspartner HF leverer tjenester innen IKT, prosjekt, logistikk og HR til alle sykehusene i Helse Sør-Øst. Sykehuspartner HF eies av Helse Sør-Øst RHF. Sykehuspartner HF har signert samarbeidsavtale med Sykehusinnkjøp HF som er involvert i Sykehuspartners anskaffelser. Alle anskaffelser utføres til anskaffelsesregelverket for offentlige anskaffelser. Det signeres avtaler med leverandører og det enkelte helseforetak (service level agreement). For regionale løsninger signerer Sykehuspartner HF avtaler med leverandører på vegne av helseforetakene.  ","Slik jobber vi med åpenhetsloven - Sykehuspartner",3,2,{"$f":"IF(OR(H12=0,I12=0),\"\",H12*I12)","v":6},null,"Påse at jevnlige møter med Sykehusinnkjøp om åpenhetsloven i FIL og samfunnsansvar"]
[3,"Byggeprosjekter som gjennomføres av Sykehusbygg på vegne av helseforetaket","I","Sykehusbygg","Pr 16.5.23 har SiV ingen prosjekter i samarbeid med sykehusbygg","Sykehusbygg utfører tjenester knyttet til utvikling, planlegging og gjennomføring av byggeprosjekter, og leverer tjenester innen eiendom som gir felles gevinster for spesialisthelsetjenesten. En vesentlig del av virksomheten består av anskaffelse av entreprenører og leverandører i byggeprosjekt på vegne av helseforetakene. For anskaffelse av leverandører (byggevarer mm) i regi av kontraktsparter til byggherre påser Sykehusbygg HF ved prosjektet at kontraktspart ivaretar kravet til aktsomhetsvurderinger. For innkjøp som foretas av prosjektet selv gjennomfører Sykehusbygg HF, eller samarbeidende helseforetak (eksempelvis Sykehusinnkjøp HF) aktsomhetsvurderinger for prosjektets anskaffelser.","Sykehusbygg HF","Ikke sannsynlighetsvurdert pr 2023","Ikke konsekvensvurdert pr 2023"]
[4,"Innkjøp av laboratorievarer som gjennomføres lokalt på sykehuset","D","KMD/Innkjøp","Lokale avtaler til laboratoriene utgjør ca 8,5% av alt vi kjøper gjennom innkjøppssystemet","SiV forvalter lokale avtaler på laboratorievarer hovedsakelig i tilknytning til instrumenter. Dette er løpende avtaler som gjelder i instrumentenes levetid. ","Anskaffelse av medisinsk teknisk utstyr",2,3,6,null,"Gjennomgang av avtalene, kartlegge de største leverandørene, påse at de gjennomfører aktsomhetsvurdering etter åpenhetsloven"]
[5,"Bygg og prosjekter som gjennomføres av SiV gjennom lokale entrepenører","D","Servicedivisjonen/Innkjøp","Pr 2022 er det kjøpt inn på ca 8 mill på lokale håndtverksavtaler","Ny rammeavtale på håndtverkstjenester vil gjennomføres i løpet av 2023. Dette omfatter elektriker, maler, entreprenør, kjøling og ventilasjon, rørlegger","Styringsdokument for innleie av fagfolk i Bygg- og eiendomsavdelingen (sykehuspartner.no)",3,3,9,null,"Sørge for at arbeid med menneskerettighheter og anstendige arbeidsforhold blir ivaretatt i ny leverandørkontrakt"]
[6,"Anskaffelser av MTU lokalt","D","Innkjøp","50 mill","Sykehusinnkjøp gjennomfører 95% av alle anskaffelser av MTU. I 2022 ble det gjennomført investeringsanskaffelser for 50 mill ved SiV. Det gjennomføres lokale avtaler på småutstyr ol.","Anskaffelse av medisinsk teknisk utstyr",2,2,4]
[null,null,null,null,null,null,null,null,null,""]
[8,null,null,null,null,null,null,null,null,""]
[9,null,null,null,null,null,null,null,null,""]
[10,null,null,null,null,null,null,null,null,""]
[11,null,null,null,null,null,null,null,null,""]
[12,null,null,null,null,null,null,null,null,""]
[13,null,null,null,null,null,null,null,null,""]
[14,null,null,null,null,null,null,null,null,""]
[15,null,null,null,null,null,null,null,null,""]
[16,null,null,null,null,null,null,null,null,""]
[17,null,null,null,null,null,null,null,null,""]
[18,null,null,null,null,null,null,null,null,""]
[19,null,null,null,null,null,null,null,null,""]
[20,null,null,null,null,null,null,null,null,""]
[21,null,null,null,null,null,null,null,null,""]
[22,null,null,null,null,null,null,null,null,""]
[23,null,null,null,null,null,null,null,null,""]
[24,null,null,null,null,null,null,null,null,""]
[25,null,null,null,null,null,null,null,null,""]
[26,null,null,null,null,null,null,null,null,""]
[27,null,null,null,null,null,null,null,null,""]
[28,null,null,null,null,null,null,null,null,""]
[29,null,null,null,null,null,null,null,null,""]
[30,null,null,null,null,null,null,null,null,""]
[31,null,null,null,null,null,null,null,null,""]
[32,null,null,null,null,null,null,null,null,""]
[33,null,null,null,null,null,null,null,null,""]
[34,null,null,null,null,null,null,null,null,""]
[35,null,null,null,null,null,null,null,null,""]
[36,null,null,null,null,null,null,null,null,""]
[37,null,null,null,null,null,null,null,null,""]
[38,null,null,null,null,null,null,null,null,""]
[39,null,null,null,null,null,null,null,null,""]
[40,null,null,null,null,null,null,null,null,""]
[41,null,null,null,null,null,null,null,null,""]
[42,null,null,null,null,null,null,null,null,""]
[43,null,null,null,null,null,null,null,null,""]
[44,null,null,null,null,null,null,null,null,""]
[45,null,null,null,null,null,null,null,null,""]